fUSD/lending_fUSD_20241225
["ID","MTS","AMOUNT","RATE_DAILY","PERIOD"]
[346678504,1735167033551,-500.0,0.000121,4]
[346678505,1735167033561,-500.0,0.00012105,2]
[346678506,1735167033571,-500.0,0.00012108,2]
[346678507,1735167033585,-158.375928,0.00012109,2]
[346678508,1735167033595,-180.985306,0.00012109,2]
[346678509,1735167033605,-1100.0,0.000122,4]
[346678510,1735167033614,-518.27538464,0.00012206,2]
[346678511,1735167033626,-648.03,0.0001228,2]
[346678512,1735167033635,-500.0,0.0001228,2]
[346678513,1735167033645,-502.4506,0.0001228,2]
[346678514,1735167033655,-500.0,0.00012281,2]
[346678515,1735167033665,-500.0,0.00012281,2]
[346678516,1735167033676,-500.0,0.00012281,2]
[346678517,1735167033686,-335.25,0.00012281,2]
[346678518,1735167033696,-500.0,0.00012281,2]
[346678519,1735167033706,-500.0,0.00012281,2]
[346678520,1735167033716,-500.0,0.00012281,2]
[346678521,1735167033726,-584.39,0.00012281,2]
[346678522,1735167033736,-500.0,0.00012281,2]
[346678523,1735167033745,-500.0,0.00012281,2]
[346678524,1735167033755,-500.0,0.00012281,2]
[346678525,1735167033765,-500.0,0.00012281,2]
[346678526,1735167033775,-500.0,0.00012281,2]
[346678527,1735167033785,-225.78,0.00012281,2]
[346678528,1735167033795,-500.0,0.00012281,2]
[346678529,1735167033805,-500.0,0.00012281,2]
[346678530,1735167033814,-617.97,0.00012281,2]
[346678531,1735167033824,-512.87,0.00012281,2]
[346678532,1735167033834,-500.0,0.00012281,2]
[346678533,1735167033845,-500.0,0.00012281,2]
[346678534,1735167033855,-500.0,0.00012281,2]
[346678535,1735167033865,-500.0,0.00012281,2]
[346678536,1735167033875,-500.0,0.00012281,2]
[346678537,1735167033885,-400.11,0.00012281,2]
[346678538,1735167033895,-534.98,0.00012281,2]
[346678539,1735167033905,-500.0,0.00012281,2]
[346678540,1735167033915,-500.0,0.00012281,2]
[346678541,1735167033924,-500.0,0.00012281,2]
[346678542,1735167033934,-500.0,0.00012281,2]
[346678543,1735167033944,-500.0,0.00012281,2]
[346678544,1735167033954,-500.0,0.00012281,2]
[346678545,1735167033963,-500.0,0.00012281,2]
[346678546,1735167033973,-500.0,0.00012281,2]
[346678547,1735167033982,-500.0,0.00012281,2]
[346678548,1735167033992,-500.0,0.00012281,2]
[346678549,1735167034002,-421.23897844,0.00012297,2]
[346678550,1735167034011,-1700.0,0.000123,4]
[346678551,1735167034021,-500.0,0.00012328,2]
[346678552,1735167034031,-500.0,0.00012328,2]
[346678553,1735167034041,-381.725,0.0001235,2]
[346678554,1735167034051,-158.375928,0.00012383,2]
[346678555,1735167034060,-180.985306,0.00012383,2]
[346678556,1735167034070,-666.122607,0.00012384,4]
[346678557,1735167034080,-666.122607,0.00012384,4]
[346678558,1735167034090,-666.122607,0.00012384,4]
[346678559,1735167034100,-666.122607,0.00012384,4]
[346678560,1735167034110,-666.122607,0.00012384,4]
[346678561,1735167034119,-666.122607,0.00012384,4]
[346678562,1735167034130,-3000.0,0.00012384,3]
[346678563,1735167034141,-2800.0,0.00012384,2]
[346678564,1735167034151,-1800.0,0.00012384,2]
[346678565,1735167034161,-2000.0,0.00012384,2]
[346678566,1735167034171,-10458.15400299,0.00012399,2]
[346678567,1735167034183,-10458.15400293,0.00012399,2]
[346678568,1735167034193,-31447.57547512,0.00012399,2]
[346678569,1735167034202,-31447.57547504,0.00012399,2]
[346678570,1735167034212,-31447.57547504,0.00012399,2]
[346678571,1735167034221,-31447.57547504,0.00012399,2]
[346678572,1735167034231,-31447.57547504,0.00012399,2]
[346678573,1735167034241,-2300.0,0.000124,4]
[346678574,1735167034251,-10458.15400293,0.00012433,2]
[346678575,1735167034261,-31447.57547504,0.00012459,2]
[346678576,1735167034271,-10458.15400293,0.00012499,2]
[346678577,1735167034281,-2900.0,0.000125,4]
[346678578,1735167034291,-500.0,0.00012555,2]
[346678579,1735167034301,-500.0,0.00012555,2]
[346678580,1735167034310,-500.0,0.00012555,2]
[346678581,1735167034320,-500.0,0.00012555,2]
[346678582,1735167034330,-500.0,0.00012555,2]
[346678583,1735167034339,-500.0,0.00012555,2]
[346678584,1735167034349,-500.0,0.00012555,2]
[346678585,1735167034360,-500.0,0.00012555,2]
[346678586,1735167034369,-500.0,0.00012555,2]
[346678587,1735167034379,-500.0,0.00012555,2]
[346678588,1735167034388,-500.0,0.00012555,2]
[346678589,1735167034398,-500.0,0.00012555,2]
[346678590,1735167034408,-500.0,0.00012555,2]
[346678591,1735167034418,-500.0,0.00012555,2]
[346678592,1735167034427,-500.0,0.00012555,2]
[346678593,1735167034437,-500.0,0.00012555,2]
[346678594,1735167034447,-448.44,0.00012555,2]
[346678595,1735167034457,-410.7,0.00012555,2]
[346678596,1735167034466,-500.0,0.00012555,2]
[346678597,1735167034477,-500.0,0.00012555,2]
[346678598,1735167034486,-500.0,0.00012555,2]
[346678599,1735167034496,-500.0,0.00012555,2]
[346678600,1735167034506,-500.0,0.00012555,2]
[346678601,1735167034515,-500.0,0.00012555,2]
[346678602,1735167034525,-500.0,0.00012555,2]
[346678603,1735167034535,-500.0,0.00012555,2]
[346678604,1735167034548,-500.0,0.00012555,2]
[346678605,1735167034558,-500.0,0.00012555,2]
[346678606,1735167034567,-153.60707537,0.00012558,2]
[346678607,1735167034577,-10458.15400293,0.00012566,2]
[346678608,1735167034589,-31447.57547504,0.00012569,2]
[346678609,1735167034599,-20000.0,0.000126,2]
[346678610,1735167034610,-1000.0,0.000126,2]
[346678611,1735167034620,-500.0,0.000126,4]
[346678612,1735167034630,-53336.14,0.00012603,2]
[346678613,1735167034639,-10458.15400293,0.00012633,2]
[346678614,1735167034649,-158.375928,0.00012657,2]
[346678615,1735167034658,-180.985306,0.00012657,2]
[346678616,1735167034668,-3775.893,0.00012667,2]
[346678617,1735167034679,-164.166,0.00012667,2]
[346678618,1735167034689,-633.0,0.00012667,2]
[346678619,1735167034699,-150.0,0.00012667,2]
[346678620,1735167034708,-565.0,0.00012667,2]
[346678621,1735167034717,-1899.0,0.00012667,2]
[346678622,1735167034727,-1256.0,0.00012667,2]
[346678623,1735167034737,-818.0,0.00012667,2]
[346678624,1735167034746,-3771.0,0.00012667,2]
[346678625,1735167034756,-923.0,0.00012667,2]
[346678626,1735167034766,-3683.0,0.00012667,2]
[346678627,1735167034776,-536.0,0.00012667,2]
[346678628,1735167034786,-150.0,0.00012667,2]
[346678629,1735167034796,-150.198,0.00012667,2]
[346678630,1735167034805,-252.779,0.00012667,2]
[346678631,1735167034815,-1101.0,0.00012667,2]
[346678632,1735167034824,-276.367,0.00012667,2]
[346678633,1735167034834,-150.265,0.00012667,2]
[346678634,1735167034843,-31447.57547504,0.00012679,2]
[346678635,1735167034853,-10458.15400293,0.000127,2]
[346678636,1735167034863,-1000.0,0.000127,2]
[346678637,1735167034873,-500.0,0.000127,4]
[346678638,1735167034882,-118237.0,0.00012712,2]
[346678639,1735167034892,-436.48,0.00012763,2]
[346678640,1735167034901,-300.0,0.00012763,2]
[346678641,1735167034911,-354.86,0.00012763,2]
[346678642,1735167034920,-150.0,0.00012763,2]
[346678643,1735167034934,-436.48,0.00012763,2]
[346678644,1735167034947,-435.66,0.00012763,2]
[346678645,1735167034956,-10458.15400293,0.00012766,2]
[346678646,1735167034966,-500.0,0.00012767,2]
[346678647,1735167034976,-31447.57547504,0.0001279,2]
[346678648,1735167034985,-701.0,0.000128,2]
[346678649,1735167034995,-407313.75710747,0.000128,2]
[346678650,1735167035019,-2299.07018082,0.000128,2]
[346678653,1735167037498,-544.32727247,0.000128,2]
[346678654,1735167037530,-6919.59999994,0.000128,2]
[346678655,1735167037561,-2268.91207617,0.000128,2]
[346678656,1735167037593,-368.79576844,0.000128,2]
[346678657,1735167037605,-355.17091682,0.000128,2]
[346678658,1735167037618,-331.2499994,0.000128,2]
[346678659,1735167037631,-759.499977,0.000128,2]
[346678660,1735167037706,-2659.12414783,0.000128,2]
[346678662,1735167037740,-4222.91353982,0.000128,2]
[346678664,1735167037749,-500.0,0.000128,4]
[346678665,1735167037759,-250.03,0.00012822,2]
[346678666,1735167037769,-396.24802296,0.00012829,2]
[346678671,1735167039648,-210.61948922,0.00012144,2]
[346678672,1735167039658,-103.75197704,0.00012829,2]
[346678673,1735167039667,-191.37146801,0.00012829,2]
[346678674,1735167039678,-308.62853199,0.00012829,2]
[346678675,1735167039687,-165.69535588,0.00012829,2]
[346678681,1735167042634,-334.30464412,0.00012829,2]
[346678682,1735167042643,-500.0,0.00012829,2]
[346678683,1735167042652,-500.0,0.00012829,2]
[346678684,1735167042661,-500.0,0.00012829,2]
[346678685,1735167042670,-500.0,0.00012829,2]
[346678686,1735167042679,-500.0,0.00012829,2]
[346678687,1735167042688,-500.0,0.00012829,2]
[346678688,1735167042697,-460.50234486,0.00012829,2]
[346678689,1735167042709,-39.49765514,0.00012829,2]
[346678690,1735167042718,-500.0,0.00012829,2]
[346678691,1735167042727,-500.0,0.00012829,2]
[346678692,1735167042735,-111.71212368,0.00012829,2]
[346678693,1735167043071,-388.28787632,0.00012829,2]
[346678694,1735167043080,-444.52,0.00012829,2]
[346678695,1735167043090,-500.0,0.00012829,2]
[346678696,1735167043099,-16.22251245,0.00012829,2]
[346678709,1735167045553,-483.77748755,0.00012829,2]
[346678710,1735167045562,-67.07251245,0.00012829,2]
[346678711,1735167045574,-432.92748755,0.00012829,2]
[346678712,1735167045585,-500.0,0.00012829,2]
[346678713,1735167045595,-249.28345351,0.00012829,2]
[346678714,1735167045604,-457.28678801,0.00012829,2]
[346678715,1735167045685,-42.71321199,0.00012829,2]
[346678716,1735167045696,-830.39183195,0.00012833,2]
[346678717,1735167045708,-9471.91815296,0.00012833,2]
[346678718,1735167045810,-150.25,0.00012717,2]
[346678719,1735167045819,-155.84401802,0.00012833,2]
[346678720,1735167045828,-1656.05198486,0.00012885,2]
[346678721,1735167045842,-797.32491212,0.00012885,2]
[346678722,1735167045852,-1465.73918788,0.00012887,2]
[346678734,1735167572875,10000.0,0.0002,120]
[346678741,1735167990345,-150.654173,9.643e-05,2]
[346678742,1735167990366,-91.83512311,9.643e-05,2]
[346678758,1735168225399,-65.15493889,9.643e-05,2]
[346678759,1735168225428,-448.5,9.663e-05,2]
[346678767,1735168231776,-211.07,0.00010137,2]
[346678768,1735168231788,-250.0,0.00010267,2]
[346678770,1735168231799,-7.36921911,0.00010267,2]
[346678771,1735168231857,-14218.71078089,0.00010267,2]
[346678772,1735168231868,-250.0,0.00011042,2]
[346678773,1735168231879,-469.92,0.00011419,2]
[346678774,1735168231891,-469.92,0.00011422,2]
[346678775,1735168231902,-469.92,0.00011425,2]
[346678776,1735168231916,-469.92,0.00011428,2]
[346678777,1735168231927,-469.92,0.00011431,2]
[346678778,1735168231939,-469.92,0.00011434,2]
[346678779,1735168231950,-469.92,0.00011437,2]
[346678780,1735168231961,-150.01,0.00011439,2]
[346678781,1735168231970,-469.92,0.0001144,2]
[346678782,1735168231980,-469.92,0.00011443,2]
[346678783,1735168231990,-469.92,0.00011446,2]
[346678784,1735168232336,-469.92,0.00011449,2]
[346678785,1735168232368,-469.92,0.00011452,2]
[346678786,1735168232381,-469.92,0.00011455,2]
[346678787,1735168232390,-469.92,0.00011458,2]
[346678788,1735168232400,-469.92,0.00011461,2]
[346678789,1735168232410,-469.92,0.00011464,2]
[346678790,1735168232420,-469.92,0.00011467,2]
[346678791,1735168232430,-469.92,0.0001147,2]
[346678792,1735168232440,-469.92,0.00011473,2]
[346678793,1735168232450,-469.92,0.00011476,2]
[346678794,1735168232459,-193.58620635,0.00011521,2]
[346678795,1735168232469,-1000.0,0.00011543,2]
[346678796,1735168232478,-332.96,0.00011621,2]
[346678797,1735168232488,-448.5,0.00011927,2]
[346678798,1735168232497,-1100.0,0.00011972,2]
[346678799,1735168232508,-500.0,0.00011972,2]
[346678800,1735168232519,-162.12,0.00012003,2]
[346678801,1735168232528,-671.87,0.00012009,2]
[346678802,1735168232537,-770.54,0.00012055,2]
[346678803,1735168232547,-293.8543,0.00012181,2]
[346678804,1735168232556,-1000.0,0.00012181,2]
[346678805,1735168232566,-150.0,0.00012192,2]
[346678806,1735168232575,-193.58620635,0.0001225,2]
[346678807,1735168232585,-5826.285,0.00012284,2]
[346678808,1735168232595,-1167.7858,0.00012299,2]
[346678809,1735168232604,-14749.5248,0.00012299,2]
[346678810,1735168232614,-40106.0,0.00012329,2]
[346678811,1735168232623,-395.8,0.0001235,2]
[346678812,1735168232633,-300.0,0.0001238,2]
[346678813,1735168232642,-500.0,0.00012603,2]
[346678814,1735168232652,-3020.715,0.00012633,2]
[346678815,1735168232660,-164.166,0.00012633,2]
[346678816,1735168232670,-319.79519534,0.00012635,2]
[346678817,1735168232679,-21563.0,0.00012672,2]
[346678818,1735168232689,-173.15238493,0.000127,2]
[346678819,1735168232698,-9774.30920648,0.000127,2]
[346678820,1735168232707,-5000.0,0.000127,2]
[346678821,1735168232717,-3926.444346,0.000127,2]
[346678822,1735168232725,-2500.0,0.000127,2]
[346678823,1735168232735,-5158.33939624,0.00012711,2]
[346678824,1735168232745,-174.11177239,0.00012711,2]
[346678825,1735168232755,-9774.3092064,0.00012722,2]
[346678826,1735168232766,-5158.33939624,0.00012732,2]
[346678827,1735168232775,-9774.3092064,0.00012744,2]
[346678828,1735168232784,-5158.33939624,0.00012753,2]
[346678829,1735168232794,-173.15238493,0.00012767,2]
[346678830,1735168232803,-9774.3092064,0.00012767,2]
[346678831,1735168232813,-5158.33939624,0.00012774,2]
[346678832,1735168232822,-9774.3092064,0.00012789,2]
[346678833,1735168232832,-189.53439018,0.0001279,2]
[346678834,1735168232842,-5158.33939624,0.00012795,2]
[346678835,1735168232852,-161.3091848,0.00012799,2]
[346678836,1735168232861,-500.0,0.00012799,2]
[346678837,1735168232871,-500.0,0.00012799,2]
[346678838,1735168232881,-500.0,0.00012799,2]
[346678839,1735168232891,-500.0,0.00012799,2]
[346678840,1735168232900,-500.0,0.00012799,2]
[346678841,1735168232910,-620.0,0.00012799,2]
[346678842,1735168232923,-490.27107054,0.00012799,2]
[346678843,1735168232932,-891327.80187564,0.000128,2]
[346678845,1735168232941,-9774.3092064,0.00012811,2]
[346678847,1735168232950,-5158.33939624,0.00012816,2]
[346678848,1735168232961,-200.0,0.00012833,2]
[346678849,1735168232970,-173.15238493,0.00012833,2]
[346678850,1735168232979,-9774.3092064,0.00012833,2]
[346678852,1735168232990,-5158.33939624,0.00012837,2]
[346678854,1735168233000,-9774.3092064,0.00012856,2]
[346678856,1735168233011,-5158.33939624,0.00012858,2]
[346678858,1735168233020,-150.01,0.00012869,2]
[346678860,1735168233031,-9774.3092064,0.00012878,2]
[346678861,1735168233042,-5158.33939624,0.00012879,2]
[346678863,1735168233052,-174.11177238,0.00012885,2]
[346678865,1735168233062,-173.15238493,0.000129,2]
[346678867,1735168233071,-153.60707537,0.000129,2]
[346678869,1735168233082,-9774.3092064,0.000129,2]
[346678871,1735168233091,-10387.2992601,0.000129,2]
[346678873,1735168233102,-5158.33939624,0.000129,2]
[346678875,1735168233112,-393.98433606,0.000129,2]
[346678877,1735168233122,-434.05538588,0.000129,2]
[346678879,1735168233131,-2348.65456316,0.000129,2]
[346678882,1735168233141,-4000.0,0.00012948,3]
[346678883,1735168233151,-3428.58830189,0.00012959,2]
[346678884,1735168233160,-880285.93118589,0.00012959,2]
[346678885,1735168233170,-7023.0,0.00012959,2]
[346678886,1735168233179,-27931.0,0.00012959,2]
[346678887,1735168233189,-500.0,0.00012973,2]
[346678888,1735168233198,-500.0,0.00012973,2]
[346678889,1735168233208,-500.0,0.00012973,2]
[346678890,1735168233218,-500.0,0.00012973,2]
[346678891,1735168233228,-40672.10752094,0.00012985,2]
[346678892,1735168233238,-1000.0,0.00012986,2]
[346678893,1735168233248,-273.122607,0.00012994,4]
[346678894,1735168233257,-666.122607,0.00012995,4]
[346678895,1735168233267,-666.122607,0.00012995,4]
[346678897,1735168233277,-666.122607,0.00012995,4]
[346678898,1735168233287,-358.122607,0.00012995,4]
[346678900,1735168233296,-444.122607,0.00012995,4]
[346678902,1735168233306,-666.122607,0.00012996,4]
[346678904,1735168233316,-666.122607,0.00012996,4]
[346678905,1735168233325,-666.122607,0.00012996,4]
[346678906,1735168233335,-666.122607,0.00012996,4]
[346678907,1735168233344,-666.122607,0.00012996,4]
[346678908,1735168233353,-666.122607,0.00012996,4]
[346678909,1735168233363,-666.122607,0.00012996,4]
[346678910,1735168233373,-666.122607,0.00012996,4]
[346678911,1735168233382,-666.122607,0.00012996,4]
[346678912,1735168233392,-666.122607,0.00012996,4]
[346678913,1735168233401,-2330.5852436,0.00012996,2]
[346678914,1735168233410,-1364.572538,0.00012996,2]
[346678915,1735168233420,-231.1167411,0.00012996,2]
[346678916,1735168233429,-2697.8808099,0.00012996,2]
[346678917,1735168233439,-2753.110985,0.00012996,2]
[346678918,1735168233449,-666.122607,0.00012997,4]
[346678919,1735168233459,-666.122607,0.00012997,4]
[346678920,1735168233468,-666.122607,0.00012997,4]
[346678921,1735168233478,-666.122607,0.00012997,4]
[346678922,1735168233487,-666.122607,0.00012997,4]
[346678923,1735168233497,-666.122607,0.00012997,4]
[346678924,1735168233507,-666.122607,0.00012997,4]
[346678925,1735168233517,-666.122607,0.00012997,4]
[346678926,1735168233527,-666.122607,0.00012997,4]
[346678927,1735168233539,-666.122607,0.00012997,4]
[346678928,1735168233548,-150.0,0.00012997,2]
[346678929,1735168233558,-150.0,0.00012997,2]
[346678930,1735168233572,-161.99664926,0.00012997,2]
[346678931,1735168233581,-150.43808002,0.00012997,2]
[346678932,1735168233590,-259.90830564,0.00012997,2]
[346678933,1735168233599,-150.0,0.00012997,2]
[346678934,1735168233609,-500.0,0.00012997,2]
[346678935,1735168233618,-200.90925341,0.00012997,2]
[346678936,1735168233627,-500.0,0.00012997,2]
[346678937,1735168233636,-150.0,0.00012997,2]
[346678938,1735168233646,-2991.0,0.00012997,2]
[346678939,1735168233655,-1717.0,0.00012997,2]
[346678940,1735168233664,-150.0,0.00012997,2]
[346678941,1735168233674,-666.122607,0.00012998,4]
[346678942,1735168233683,-666.122607,0.00012998,4]
[346678943,1735168233692,-666.122607,0.00012998,4]
[346678944,1735168233702,-666.122607,0.00012998,4]
[346678945,1735168233711,-666.122607,0.00012998,4]
[346678946,1735168233721,-666.122607,0.00012998,4]
[346678947,1735168233730,-666.122607,0.00012998,4]
[346678948,1735168233740,-666.122607,0.00012998,4]
[346678949,1735168233750,-666.122607,0.00012998,4]
[346678950,1735168233761,-666.122607,0.00012998,4]
[346678951,1735168233770,-1000.0,0.00012999,2]
[346678952,1735168233780,-500.0,0.00012999,2]
[346678953,1735168233789,-156.716007,0.00012999,2]
[346678954,1735168233799,-156.716007,0.00012999,2]
[346678955,1735168233809,-1743.140024,0.00012999,2]
[346678956,1735168233818,-1743.140024,0.00012999,2]
[346678957,1735168233828,-179.924704,0.00012999,2]
[346678958,1735168233837,-179.924704,0.00012999,2]
[346678959,1735168233846,-910.0,0.00012999,2]
[346678960,1735168233856,-752849.38573952,0.00013,2]
[346678961,1735168234192,-509.22801043,0.00013,2]
[346678962,1735168234208,-10204.0,0.00013,2]
[346678963,1735168234219,-12831.99380237,0.00013,2]
[346678964,1735168234230,-764.09346099,0.00013,2]
[346678965,1735168234304,-58318.21148549,0.00013,2]
[346678966,1735168234315,-2417.52225214,0.00013,2]
[346678967,1735168234326,-7425.28441175,0.00013,2]
[346678968,1735168234337,-1276.63304039,0.00013,2]
[346678971,1735168237698,-295.51297751,0.00010137,2]
[346678972,1735168237870,-106.79702249,0.00010137,2]
[346678973,1735168237880,-719.0,0.000128,2]
[346678974,1735168237889,-185.93170517,0.000129,2]
[346678975,1735168237899,-1272.27127234,0.00013,2]
[346678976,1735168237911,-10985.55453406,0.00013,2]
[346678977,1735168237938,-287931.67567241,0.00013,2]
[346678984,1735168240257,-361.44000017,0.00013,2]
[346678985,1735168240430,-33928.70599424,0.00013,2]
[346678986,1735168240442,-3798.00727549,0.00013,2]
[346678987,1735168240453,-369.43593345,0.00013,2]
[346678988,1735168240493,-264.79672554,0.00013,2]
[346678989,1735168240505,-652.01062997,0.00013,2]
[346678990,1735168240578,-462.10239366,0.00013,2]
[346678991,1735168240590,-1906.35,0.00013,2]
[346679044,1735168242999,-646.0,0.000128,2]
[346679045,1735168243009,-8500.90009583,0.00013,2]
[346679046,1735168243067,-2332.33001,0.00013,2]
[346679057,1735168243300,-26.94325508,0.00013,2]
[346679059,1735168243310,-3276.10225237,0.00013,2]
[346679062,1735168245917,-739.671769,0.00013,2]
[346679063,1735168245977,-4503.95913072,0.00013,2]
[346679064,1735168245987,-25471.52036624,0.00013,2]
[346679069,1735168321024,-500.0,0.00011972,2]
[346679070,1735168746651,443.67,0.00010125,2]
[346679071,1735168948473,686.09,0.00011975,2]
[346679072,1735168952615,250.0,0.00011975,2]
[346679073,1735169104813,27606.58506111,0.00012,2]
[346679074,1735169149273,-9641.34,0.00011,2]
[346679075,1735169201385,358.66,0.00011,2]
[346679088,1735169431986,-18770.69777156,0.00011,2]
[346679089,1735169432001,-2417.52225214,0.00011,2]
[346679090,1735169432048,-420.589625,0.00011,2]
[346679091,1735169432060,-425.94529019,0.00011,2]
[346679092,1735169432070,-250.0,0.00011831,2]
[346679093,1735169432080,-152.48628607,0.00011868,2]
[346679094,1735169432089,-250.0,0.00011903,2]
[346679095,1735169432099,-5361.77758969,0.00011969,2]
[346679096,1735169432155,-1306.68844841,0.00011969,2]
[346679097,1735169432281,-621.9009,0.00011969,2]
[346679098,1735169432292,-900.9999972,0.00011969,2]
[346679222,1735169437849,-3426.1393248,0.00011969,2]
[346679223,1735169437882,-3273.58778566,0.00011969,2]
[346679224,1735169438006,-2301.7,0.00011969,2]
[346679225,1735169438046,-6707.20595424,0.00011969,2]
[346679226,1735169438058,-359.69016016,0.00011971,2]
[346679227,1735169438068,-5000.0,0.00012,2]
[346679228,1735169438078,-6214.2931286,0.00012,2]
[346679229,1735169438088,-390.94,0.00012027,2]
[346679230,1735169438097,-1000.0,0.00012112,2]
[346679231,1735169438106,-409.617,0.0001235,2]
[346679232,1735169438115,-443.67,0.00012389,2]
[346679233,1735169438125,-168.35,0.00012566,2]
[346679234,1735169438135,-2416.572,0.00012603,2]
[346679235,1735169438144,-1000.0,0.00012667,2]
[346679236,1735169438154,-319.79519534,0.00012696,2]
[346679237,1735169438164,-164.166,0.000127,2]
[346679238,1735169438173,-1634.0,0.000127,2]
[346679239,1735169438183,-635.0,0.00012728,2]
[346679240,1735169438192,-1000.0,0.000128,2]
[346679241,1735169438202,-150.99,0.00012893,2]
[346679242,1735169438211,-7889.44,0.00012893,2]
[346679243,1735169438221,-299.99,0.00012893,2]
[346679244,1735169438230,-7245.08631965,0.00012893,2]
[346679246,1735169438242,-2754.90368035,0.00012893,2]
[346679247,1735169438251,-9999.99,0.00012893,2]
[346679249,1735169438261,-9999.99,0.00012893,2]
[346679251,1735169438271,-405.25,0.00012893,2]
[346679253,1735169438281,-7255.74,0.00012893,2]
[346679255,1735169438290,-150.99,0.00012893,2]
[346679257,1735169438299,-3588.33,0.00012893,2]
[346679259,1735169438309,-999.99,0.00012893,2]
[346679261,1735169438321,-695.36740826,0.00012899,2]
[346679263,1735169438332,-695.3674082,0.00012899,2]
[346679264,1735169438342,-695.3674082,0.00012899,2]
[346679266,1735169438351,-695.3674082,0.00012899,2]
[346679268,1735169438361,-695.3674082,0.00012899,2]
[346679270,1735169438370,-695.3674082,0.000129,2]
[346679271,1735169438379,-695.3674082,0.000129,2]
[346679272,1735169438388,-5000.0,0.000129,2]
[346679273,1735169438398,-695.3674082,0.000129,2]
[346679274,1735169438407,-695.3674082,0.000129,2]
[346679275,1735169438416,-763.28398254,0.000129,2]
[346679276,1735169438425,-10369.5304,0.000129,2]
[346679277,1735169438436,-695.3674082,0.000129,2]
[346679278,1735169438447,-1000.0,0.000129,2]
[346679279,1735169438456,-8571.94559946,0.000129,2]
[346679280,1735169438466,-500.0,0.00012973,2]
[346679281,1735169438475,-500.0,0.00012973,2]
[346679282,1735169438484,-481.58082992,0.00012973,2]
[346679283,1735169438493,-273.4097322,0.00012994,2]
[346679284,1735169438502,-666.122608,0.00012997,4]
[346679285,1735169438511,-666.122608,0.00012997,4]
[346679286,1735169438521,-666.122608,0.00012997,4]
[346679287,1735169438530,-666.122608,0.00012997,4]
[346679288,1735169438539,-666.122608,0.00012997,4]
[346679289,1735169438548,-666.122608,0.00012997,4]
[346679290,1735169438558,-666.122608,0.00012997,4]
[346679291,1735169438567,-666.122608,0.00012997,4]
[346679292,1735169438577,-666.122608,0.00012997,4]
[346679293,1735169438588,-666.122608,0.00012997,4]
[346679294,1735169438598,-310.122608,0.00012997,4]
[346679295,1735169438607,-666.122608,0.00012998,4]
[346679296,1735169438616,-666.122608,0.00012998,4]
[346679297,1735169438624,-666.122608,0.00012998,4]
[346679298,1735169438634,-666.122608,0.00012998,4]
[346679299,1735169438644,-666.122608,0.00012998,4]
[346679300,1735169438654,-666.122608,0.00012998,4]
[346679301,1735169438663,-666.122608,0.00012998,4]
[346679302,1735169438672,-666.122608,0.00012998,4]
[346679303,1735169438681,-666.122608,0.00012998,4]
[346679304,1735169438689,-666.122608,0.00012998,4]
[346679305,1735169438699,-500.0,0.00012999,2]
[346679306,1735169438708,-236.92939489,0.00012999,2]
[346679307,1735169438717,-500.0,0.00012999,2]
[346679308,1735169438726,-171.73755645,0.00012999,2]
[346679309,1735169438735,-500.0,0.00012999,2]
[346679310,1735169438745,-500.0,0.00012999,2]
[346679311,1735169438754,-500.0,0.00012999,2]
[346679312,1735169438764,-500.0,0.00012999,2]
[346679313,1735169438774,-500.0,0.00012999,2]
[346679314,1735169438783,-415.22656354,0.00012999,2]